bitfinex/quotes_BTCUSD_20260104
["timestamp","ask_amount","ask_price","bid_price","bid_amount"]
[1767485600327,0.01095446,91287.0,91279.0,4.016e-05]
[1767485600328,0.05477651,91280.0,91279.0,4.016e-05]
[1767485600535,0.01095506,91282.0,91279.0,4.016e-05]
[1767485600794,0.01095446,91287.0,91279.0,4.016e-05]
[1767485600966,0.01095446,91287.0,91283.0,0.04866805]
[1767485601199,0.01095446,91287.0,91279.0,4.016e-05]
[1767485601414,0.0109541,91290.0,91281.0,0.01095518]
[1767485601624,0.01095446,91287.0,91279.0,0.01099558]
[1767485601829,0.01095434,91288.0,91279.0,0.01099558]
[1767485601830,0.01095434,91288.0,91280.0,0.0109553]
[1767485602068,0.05476757,91295.0,91288.0,0.000999]
[1767485602266,0.01095314,91298.0,91288.0,0.02095434]
[1767485602470,0.01095326,91297.0,91288.0,0.01]
[1767485602836,0.01095326,91297.0,91288.0,0.02095434]
[1767485603034,0.01095338,91296.0,91288.0,0.01]
[1767485603270,0.01095326,91297.0,91296.0,0.000999]
[1767485603651,0.01086497,91297.0,91296.0,0.000999]
[1767485603854,0.01086497,91297.0,91286.0,0.06572727]
[1767485603855,0.01095194,91308.0,91299.0,0.01095302]
[1767485604076,0.0547585,91311.0,91301.0,0.01095278]
[1767485604302,0.0547585,91311.0,91299.0,0.06582527]
[1767485604303,0.0109523,91305.0,91299.0,0.00010762]
[1767485604602,0.0224,91315.0,91299.0,0.00010762]
[1767485604603,0.01095182,91309.0,91305.0,0.000899]
[1767485604805,0.01095194,91308.0,91305.0,0.000899]
[1767485605027,0.01095194,91308.0,91299.0,0.01106064]
[1767485605211,0.01095242,91304.0,91299.0,0.00010762]
[1767485605383,0.01095254,91303.0,91299.0,0.00010762]
[1767485605561,0.06571237,91307.0,91299.0,0.00010762]
[1767485605769,0.06571315,91306.0,91303.0,0.000899]
[1767485605969,0.0109523,91305.0,91299.0,0.00010762]
[1767485606186,0.01095218,91306.0,91299.0,0.00010762]
[1767485606388,0.01095242,91304.0,91299.0,0.00010762]
[1767485606965,0.01095242,91304.0,91293.0,0.0547682]
[1767485606966,0.0001,91299.0,91288.0,0.01095434]
[1767485607179,0.0109535,91295.0,91288.0,0.00035859]
[1767485607462,0.01095374,91293.0,91288.0,0.00035859]
[1767485607741,0.01095446,91287.0,91281.0,0.0997]
[1767485607895,0.01095446,91287.0,91276.0,0.01095578]
[1767485607896,0.0109535,91295.0,91287.0,0.010899]
[1767485608098,0.06572327,91292.0,91287.0,0.010899]
[1767485608424,0.0492555,91318.0,91287.0,0.010899]
[1767485608425,0.06020432,91334.0,91314.0,0.01095122]
[1767485608599,0.00086135,91326.0,91319.0,0.01095062]
[1767485608797,0.00086135,91326.0,91318.0,0.01095074]
[1767485609117,0.06106663,91326.0,91318.0,0.01095074]
[1767485609277,0.0109499,91325.0,91316.0,0.01095098]
[1767485609481,0.06020624,91318.0,91316.0,0.0224]
[1767485609703,0.06020624,91318.0,91308.0,0.01095194]
[1767485609704,0.0492555,91318.0,91314.0,0.0224]
[1767485610083,0.0492555,91318.0,91252.0,0.09761224]
[1767485610084,0.01095086,91317.0,91305.0,0.0109523]
[1767485610287,0.0109511,91315.0,91306.0,0.03335218]
[1767485610483,0.05672918,91317.0,91309.0,0.01095182]
[1767485610484,0.04577832,91317.0,91309.0,0.01095182]
[1767485610706,0.05672918,91317.0,91308.0,0.01095194]
[1767485611040,0.01095014,91323.0,91307.0,0.0224]
[1767485611041,0.04577832,91325.0,91317.0,0.000999]
[1767485611192,0.04577832,91325.0,91317.0,0.010999]
[1767485611391,0.05672822,91325.0,91317.0,0.02095086]
[1767485611580,0.00076135,91326.0,91321.0,0.01095038]
[1767485611779,0.04732922,91325.0,91322.0,0.01095026]
[1767485611975,0.04633022,91325.0,91322.0,0.01095026]
[1767485612235,0.00076135,91326.0,91323.0,0.01095014]
[1767485612434,0.00076135,91326.0,91322.0,0.06570156]
[1767485612435,0.00076135,91326.0,91322.0,0.01095026]
[1767485612944,0.00076135,91326.0,91320.0,0.0109505]
[1767485613146,0.00076135,91326.0,91321.0,0.01095038]
[1767485613281,0.00076135,91326.0,91320.0,0.0109505]
[1767485613999,0.000999,91320.0,91317.0,0.03335086]
[1767485614187,1e-08,91320.0,91317.0,0.03335086]
[1767485614376,0.00076135,91326.0,91318.0,0.01095074]
[1767485614577,0.0109499,91325.0,91318.0,0.01095074]
[1767485614814,0.00076135,91326.0,91319.0,0.01095062]
[1767485615017,0.00076135,91326.0,91321.0,0.01095038]
[1767485615919,0.00076135,91326.0,91319.0,0.01095062]
[1767485616123,0.01171113,91326.0,91317.0,0.0224]
[1767485616338,0.0109499,91325.0,91317.0,0.03335086]
[1767485616539,1e-08,91339.0,91336.0,0.06569091]
[1767485616760,0.01094666,91352.0,91342.0,0.01094786]
[1767485616997,0.04732922,91354.0,91347.0,0.05473624]
[1767485617172,0.04732922,91354.0,91348.0,0.01094714]
[1767485617354,0.04732922,91354.0,91349.0,0.01094702]
[1767485618021,0.04732922,91354.0,91348.0,0.01094714]
[1767485618228,0.04732922,91354.0,91344.0,0.01094762]
[1767485618563,0.04732922,91354.0,91347.0,0.01094726]
[1767485618902,0.04732922,91354.0,91347.0,0.06568339]
[1767485619099,0.04732922,91354.0,91350.0,0.0109469]
[1767485619312,0.04732922,91354.0,91347.0,0.01094726]
[1767485619816,0.04732922,91354.0,91348.0,0.01094714]
[1767485620311,0.04732922,91354.0,91349.0,0.01094702]
[1767485620662,0.04732922,91354.0,91350.0,0.0109469]
[1767485620860,0.04732922,91354.0,91349.0,0.01094702]
[1767485621342,0.05473274,91353.0,91339.0,0.01094822]
[1767485621552,0.00099899,91349.0,91341.0,0.06568785]
[1767485621754,0.04732922,91347.0,91339.0,0.06568928]
[1767485621956,0.0109475,91345.0,91340.0,0.0224]
[1767485622197,0.0109475,91345.0,91340.0,0.02250754]
[1767485622362,0.01094762,91344.0,91340.0,0.02250754]
[1767485622563,0.01094798,91341.0,91333.0,0.01094894]
[1767485622775,0.00010754,91341.0,91338.0,0.00056766]
[1767485622930,0.01105552,91341.0,91338.0,0.00056766]
[1767485623140,0.00010754,91341.0,91338.0,0.00056766]
[1767485623769,0.0109481,91340.0,91337.0,0.0224]
[1767485623965,0.0109481,91340.0,91337.0,0.02196868]
[1767485624256,0.0109481,91340.0,91300.0,0.43811451]
[1767485624257,0.01094846,91337.0,91326.0,0.01094978]
[1767485624492,0.0109487,91335.0,91328.0,0.04707683]
[1767485624700,0.01094882,91334.0,91328.0,0.04707683]
[1767485624871,0.01094918,91331.0,91328.0,0.04707683]
[1767485625079,0.00766695,91331.0,91327.0,0.02236]
[1767485625411,0.05474472,91333.0,91322.0,0.05802709]
[1767485625590,0.01094906,91332.0,91331.0,0.000999]
[1767485625959,0.01094906,91332.0,91323.0,0.03331014]
[1767485626161,0.0109493,91330.0,91323.0,0.02236]
[1767485626563,0.01094906,91332.0,91324.0,0.01095002]
[1767485626771,0.01094906,91332.0,91325.0,0.02236]
[1767485627021,0.01094906,91332.0,91326.0,0.02236]
[1767485627163,0.01094894,91333.0,91326.0,0.02236]
[1767485627573,0.06129555,91383.0,91319.0,0.01095062]
[1767485627574,0.01094942,91329.0,91319.0,0.01095062]
[1767485627793,0.0109493,91330.0,91324.0,0.02236]
[1767485628038,0.01094954,91328.0,91324.0,0.02236]
[1767485628234,0.0109499,91325.0,91316.0,0.05802781]
[1767485628433,0.01094954,91328.0,91317.0,0.07711409]
[1767485628639,0.01094954,91328.0,91325.0,0.000999]
[1767485629015,0.01094942,91329.0,91320.0,0.0109505]
[1767485629223,0.01094954,91328.0,91319.0,0.01095062]
[1767485629430,0.01094954,91328.0,91320.0,0.0109505]
[1767485629710,0.01094966,91327.0,91321.0,0.02236]
[1767485629943,0.01094954,91328.0,91321.0,0.02236]
[1767485630143,0.01094942,91329.0,91321.0,0.03331038]
[1767485630322,0.05474534,91332.0,91322.0,0.01095026]
[1767485630528,0.01094954,91328.0,91321.0,0.02236]
[1767485630725,0.01094954,91328.0,91311.0,0.01095158]
[1767485630928,0.70052623,91350.0,91300.0,0.21905665]
[1767485630929,0.01095074,91318.0,91315.0,0.02236]
[1767485631158,0.01095074,91318.0,91310.0,0.05802853]
[1767485631159,0.01095038,91321.0,91318.0,0.000999]
[1767485631383,0.0109493,91330.0,91322.0,0.01095026]
[1767485631583,0.04732922,91336.0,91324.0,0.05475012]
[1767485631786,0.1020722,91336.0,91323.0,0.06570084]
[1767485631986,0.01094906,91332.0,91323.0,0.06570084]
[1767485632184,0.01094906,91332.0,91322.0,0.01095026]
[1767485632390,0.01094906,91332.0,91323.0,0.01095014]
[1767485633008,0.0109493,91330.0,91322.0,0.01095026]
[1767485633209,0.0109493,91330.0,91323.0,0.01095014]
[1767485633377,0.01094918,91331.0,91322.0,0.01095026]
[1767485633577,0.0109493,91330.0,91322.0,0.01095026]
[1767485633776,0.05474419,91334.0,91322.0,0.01095026]
[1767485633777,0.0109481,91340.0,91327.0,0.05474832]
[1767485634007,0.1153,91420.0,91331.0,0.04707683]
[1767485634008,0.0109487,91335.0,91331.0,0.04707683]
[1767485634607,0.01094882,91334.0,91330.0,0.00999999]
[1767485634915,0.04732922,91342.0,91331.0,0.01094918]
[1767485635120,0.04732922,91342.0,91334.0,0.000999]
[1767485635324,0.01094822,91339.0,91334.0,0.000999]
[1767485635554,0.01094834,91338.0,91330.0,0.0109493]
[1767485635892,0.01094654,91353.0,91344.0,0.04707683]
[1767485636236,0.01109746,91357.0,91344.0,0.04707683]
[1767485636237,0.01094642,91354.0,91346.0,0.01094738]
[1767485636393,0.01094654,91353.0,91346.0,0.01094738]
[1767485636593,0.0109469,91350.0,91344.0,0.04707683]
[1767485637513,0.05473268,91354.0,91344.0,0.04707683]
[1767485637514,0.02236,91363.0,91357.0,0.04707683]
[1767485637715,0.01094558,91361.0,91357.0,0.04707683]
[1767485637912,0.01094546,91362.0,91354.0,0.01094642]
[1767485638100,0.01094534,91363.0,91355.0,0.0109463]
[1767485638433,0.0547245,91367.0,91351.0,0.04707683]
[1767485638434,0.01094642,91354.0,91351.0,0.04707683]
[1767485638684,0.05473333,91352.0,91351.0,0.04707683]
[1767485638901,0.01094642,91354.0,91351.0,0.04707683]
[1767485639074,0.06567913,91354.0,91351.0,0.04707683]
[1767485639623,0.01094666,91352.0,91349.0,0.02236]
[1767485639818,0.01094666,91352.0,91349.0,0.06943683]
[1767485640067,0.01094666,91352.0,91148.0,0.69379386]
[1767485640068,0.01094714,91348.0,91342.0,0.04907656]
[1767485640374,0.01094726,91347.0,91339.0,0.01094822]
[1767485640578,0.0109475,91345.0,91343.0,0.02236]
[1767485641109,0.05473562,91349.0,91330.0,0.0109493]
[1767485641110,0.05473928,91343.0,91330.0,0.0109493]
[1767485641315,0.05474833,91327.0,91308.0,0.0997]
[1767485641491,0.05474833,91327.0,91321.0,1e-08]
[1767485641492,0.0109499,91325.0,91321.0,1e-08]
[1767485641668,0.01095002,91324.0,91321.0,1e-08]
[1767485642033,0.06480814,91325.0,91321.0,1e-08]
[1767485642034,0.00010752,91325.0,91321.0,1e-08]
[1767485642250,0.0109493,91330.0,91321.0,0.01095039]
[1767485642449,0.01094942,91329.0,91321.0,0.01095039]
[1767485642752,0.01094798,91341.0,91328.0,0.01094954]
[1767485642982,0.01094966,91327.0,91321.0,1e-08]
[1767485643176,0.01,91328.0,91322.0,0.02236]
[1767485643469,0.01094966,91327.0,91322.0,0.02236]
[1767485643670,0.0109499,91325.0,91322.0,0.02236]
[1767485643896,0.01094978,91326.0,91322.0,0.02236]
[1767485644071,0.0109499,91325.0,91322.0,0.02236]
[1767485644458,0.000999,91322.0,91321.0,1e-08]
[1767485644857,0.02095037,91321.0,91318.0,0.02236]
[1767485645057,0.07570229,91321.0,91308.0,0.01095194]
[1767485645334,0.01095086,91317.0,91309.0,0.01095182]
[1767485645659,0.06570301,91320.0,91310.0,0.0109517]
[1767485645855,0.06570301,91320.0,91312.0,0.01095146]
[1767485645856,0.0109505,91320.0,91312.0,0.01095146]
[1767485646085,0.01095062,91319.0,91311.0,0.01095158]
[1767485646285,0.01095074,91318.0,91307.0,0.01110346]
[1767485646493,0.0109511,91315.0,91308.0,0.01095194]
[1767485646697,0.0109511,91315.0,91307.0,0.01110346]
[1767485646901,0.06570101,91323.0,91307.0,0.01110346]
[1767485647104,0.06570101,91323.0,91313.0,0.05475671]
[1767485647105,0.01095026,91322.0,91313.0,0.05475671]
[1767485647331,0.0109505,91320.0,91311.0,0.06570945]
[1767485647559,0.01095062,91319.0,91311.0,0.01095158]
[1767485647752,0.01095062,91319.0,91312.0,0.01095146]
[1767485647954,5.494e-05,91321.0,91314.0,0.01095122]
[1767485648618,0.01100532,91321.0,91313.0,0.01095134]
[1767485648819,0.000999,91313.0,91310.0,0.0109517]
[1767485649068,0.000999,91313.0,91307.0,0.07158796]
[1767485649459,0.01100532,91321.0,91310.0,0.0109517]
[1767485649615,0.0109505,91320.0,91312.0,0.01095146]
[1767485649815,0.0109505,91320.0,91313.0,0.01095134]
[1767485650062,0.01095086,91317.0,91310.0,0.0109517]
[1767485650234,0.0109505,91320.0,91313.0,0.01095134]
[1767485650442,0.0109505,91320.0,91312.0,0.06002802]
[1767485650639,0.01095062,91319.0,91311.0,0.01095158]
[1767485650840,0.01095086,91317.0,91310.0,0.0109517]
[1767485651046,0.01095086,91317.0,91307.0,0.06586366]
[1767485651047,0.01095098,91316.0,91307.0,0.0001514]
[1767485651244,0.04929763,91308.0,91289.0,0.01110562]
[1767485651453,0.01095386,91292.0,91289.0,0.0001514]
[1767485651652,0.01086557,91292.0,91289.0,0.0001514]
[1767485651873,0.01095338,91296.0,91292.0,0.000999]
[1767485652042,0.01095338,91296.0,91289.0,0.0001514]
[1767485652043,0.05477051,91290.0,91289.0,0.0001514]
[1767485652382,0.01095386,91292.0,91289.0,0.0001514]
[1767485652600,0.01095386,91292.0,91289.0,0.00051006]
[1767485653092,0.05476991,91291.0,91289.0,6e-08]
[1767485653234,0.01095434,91288.0,91280.0,0.0109553]
[1767485653430,0.00051,91289.0,91288.0,0.00051]
[1767485653876,0.01095326,91297.0,91287.0,0.01095446]
[1767485654242,0.01095278,91301.0,91292.0,0.05476911]
[1767485654376,0.01095266,91302.0,91293.0,0.01095374]
[1767485654572,0.01095266,91302.0,91294.0,0.01095362]
[1767485654783,0.01095266,91302.0,91293.0,0.01095374]
[1767485654983,0.0108529,91300.0,91293.0,0.01095374]
[1767485655187,0.06025041,91301.0,91290.0,0.0109541]
[1767485655188,0.000489,91293.0,91290.0,0.0109541]
[1767485655406,0.01095326,91297.0,91289.0,0.01095422]
[1767485655604,0.21903257,91311.0,91277.0,0.24147255]
[1767485655605,0.01095398,91291.0,91280.0,0.01106282]
[1767485655811,0.01095386,91292.0,91284.0,0.01095482]
[1767485656462,0.04929763,91295.0,91292.0,0.00051]
[1767485656463,0.06025113,91295.0,91292.0,0.00051]
[1767485656612,0.01095398,91291.0,91283.0,0.01095494]
[1767485656819,0.01095386,91292.0,91285.0,0.0109547]
[1767485657015,0.01095386,91292.0,91283.0,0.06572963]
[1767485657016,0.06025149,91292.0,91284.0,0.01095482]
[1767485657216,0.04929763,91292.0,91285.0,0.0109547]
[1767485657418,0.04929763,91292.0,91283.0,0.01095494]
[1767485657419,0.01095398,91291.0,91283.0,0.01095494]
[1767485657618,0.01095434,91288.0,91281.0,0.01095518]
[1767485657805,0.0109541,91290.0,91288.0,0.00051]
[1767485658239,0.01095422,91289.0,91281.0,0.01095518]
[1767485658539,0.01095422,91289.0,91282.0,0.01095506]
[1767485659046,0.01095374,91293.0,91281.0,0.01095518]
[1767485659047,0.01095146,91312.0,91301.0,0.04907656]
[1767485659184,0.01095122,91314.0,91303.0,0.01095254]
[1767485659388,0.0109511,91315.0,91304.0,0.04907656]
[1767485659609,0.01095098,91316.0,91307.0,0.01095206]
[1767485659936,0.01095098,91316.0,91308.0,0.01095194]
[1767485660141,0.01095098,91316.0,91304.0,0.01095242]
[1767485660317,0.01048893,91308.0,91305.0,0.0109523]
[1767485660519,0.00999993,91308.0,91301.0,0.01095278]
[1767485660699,0.00999993,91308.0,91302.0,0.01095266]
[1767485661104,0.06511827,91308.0,91297.0,0.01095326]
[1767485661310,0.01035852,91308.0,91300.0,0.0109529]
[1767485661509,0.02131046,91308.0,91299.0,0.01095302]
[1767485661715,0.01095218,91306.0,91298.0,0.03331314]
[1767485661917,0.01095218,91306.0,91299.0,0.01095302]
[1767485662173,0.01095206,91307.0,91300.0,0.0109529]
[1767485662341,0.00035859,91308.0,91302.0,0.01095266]
[1767485662672,5.9e-07,91308.0,91305.0,0.0109523]
[1767485662873,0.01095026,91322.0,91314.0,0.01095122]
[1767485663051,0.01110178,91321.0,91314.0,0.01095122]
[1767485663254,0.01110178,91321.0,91313.0,0.01095134]
[1767485663417,0.0109505,91320.0,91310.0,0.06570974]
[1767485663615,0.01095062,91319.0,91311.0,0.01095158]
[1767485664038,0.01095086,91317.0,91311.0,0.01095158]
[1767485664220,0.0001514,91321.0,91315.0,0.0109511]
[1767485664415,0.05525198,91326.0,91310.0,0.04907656]
[1767485664416,0.00050269,91326.0,91319.0,0.06002718]
[1767485664628,0.01094942,91329.0,91326.0,0.00049]
[1767485665042,0.01088054,91329.0,91326.0,0.00049]
[1767485665319,0.01094978,91326.0,91322.0,0.04907656]
[1767485665521,0.00676761,91326.0,91318.0,0.04907656]
[1767485665681,0.0109499,91325.0,91318.0,0.04907656]
[1767485666050,0.01094966,91327.0,91314.0,0.02236]
[1767485666051,0.00049,91318.0,91314.0,0.02236]
[1767485666252,0.00049,91318.0,91310.0,0.0109517]
[1767485666423,0.00049,91318.0,91310.0,0.03320747]
[1767485666723,0.01144074,91318.0,91310.0,0.03320747]
[1767485666925,0.00049,91318.0,91311.0,0.05475791]
[1767485667071,0.01095038,91321.0,91311.0,0.05475791]
[1767485667270,0.01095062,91319.0,91310.0,0.03320747]
[1767485667519,0.01095062,91319.0,91312.0,0.01095146]
[1767485667723,0.01095014,91323.0,91313.0,0.01095134]
[1767485667925,0.01094786,91342.0,91325.0,0.0109499]
[1767485668126,0.01094942,91329.0,91323.0,0.00951]
[1767485668325,0.06569367,91333.0,91324.0,0.01095002]
[1767485668655,0.01094906,91332.0,91324.0,0.01095002]
[1767485668847,0.01094894,91333.0,91324.0,0.01095002]
[1767485668848,0.01094894,91333.0,91325.0,0.0109499]
[1767485669231,0.01094894,91333.0,91326.0,0.01094978]
[1767485669438,0.05496153,91332.0,91322.0,0.06570108]
[1767485669634,0.0109493,91330.0,91322.0,0.01095026]
[1767485669840,0.01094906,91332.0,91325.0,0.0109499]
[1767485670354,0.01094906,91332.0,91321.0,0.0657018]
[1767485670355,0.0001514,91339.0,91332.0,0.010509]
[1767485670586,0.0001514,91339.0,91332.0,0.02045906]
[1767485670863,0.0001514,91339.0,91336.0,0.06569097]
[1767485671340,0.03330702,91349.0,91336.0,0.06569097]
[1767485671341,0.05470642,91354.0,91344.0,0.06568523]
[1767485671550,0.00010758,91354.0,91345.0,0.0109475]
[1767485671949,0.00010758,91354.0,91347.0,0.01094726]
[1767485672148,0.011054,91354.0,91345.0,0.0109475]
[1767485672352,0.0001514,91357.0,91354.0,0.010358]
[1767485672551,0.01109746,91357.0,91354.0,0.010358]
[1767485672725,0.0001514,91357.0,91354.0,0.00951]
[1767485673119,0.01109746,91357.0,91354.0,0.00951]
[1767485673437,0.0001514,91357.0,91354.0,0.00951]
[1767485674054,0.0001514,91357.0,91351.0,0.01094678]
[1767485674270,0.01094618,91356.0,91349.0,0.01094702]
[1767485674477,0.01109746,91357.0,91350.0,0.0109469]
[1767485674685,0.01109746,91357.0,91347.0,0.04763776]
[1767485674880,0.01109746,91357.0,91346.0,0.01094738]
[1767485674881,0.01094726,91347.0,91346.0,0.02236]
[1767485675757,0.01094714,91348.0,91342.0,0.02232]
[1767485675963,0.01094726,91347.0,91343.0,0.04763776]
[1767485676313,0.01094738,91346.0,91343.0,0.04763776]
[1767485676536,0.01094678,91351.0,91343.0,0.04763776]
[1767485676723,0.01094702,91349.0,91346.0,0.05714776]
[1767485677069,0.01094702,91349.0,91346.0,0.04763776]
[1767485677266,0.05473573,91348.0,91346.0,0.0474989]
[1767485677481,0.01094702,91349.0,91346.0,0.0474989]
[1767485678048,0.06568269,91349.0,91346.0,0.0474989]
[1767485678740,0.01094738,91346.0,91343.0,0.04763776]
[1767485680210,0.22988255,91351.0,91332.0,0.05474513]
[1767485680211,0.01094786,91342.0,91333.0,0.00933595]
[1767485680410,0.01143774,91343.0,91342.0,0.000999]
[1767485680814,0.01094822,91339.0,91332.0,0.01094906]
[1767485681194,0.01094834,91338.0,91331.0,0.02232]
[1767485681432,0.06568878,91340.0,91331.0,0.02232]
[1767485681433,0.0109481,91340.0,91332.0,0.01094906]
[1767485681739,0.09851956,91439.0,91331.0,0.03326918]
[1767485681740,0.01094678,91351.0,91343.0,0.04763776]
[1767485682040,0.0109463,91355.0,91346.0,0.01094738]
[1767485682185,0.01094642,91354.0,91346.0,0.01094738]
[1767485682388,0.00010752,91355.0,91352.0,0.01094666]
[1767485682586,0.00010752,91355.0,91350.0,0.0109469]
[1767485682894,0.00010752,91355.0,91349.0,0.01094702]
[1767485683124,0.01105382,91355.0,91348.0,0.01094714]
[1767485683506,0.01105382,91355.0,91347.0,0.01094726]
[1767485683709,0.01094642,91354.0,91347.0,0.01094726]
[1767485684137,0.01105382,91355.0,91348.0,0.01094714]
[1767485684630,0.00010752,91355.0,91348.0,0.01094714]
[1767485684836,0.00010752,91355.0,91350.0,0.0109469]
[1767485685417,0.0001514,91357.0,91352.0,0.01094666]
[1767485685617,0.0001514,91357.0,91354.0,0.01094642]
[1767485686017,0.0001514,91357.0,91352.0,0.01094666]
[1767485686234,0.0001514,91357.0,91350.0,0.0109469]
[1767485686235,0.000999,91354.0,91351.0,0.01094678]
[1767485686436,0.0001514,91357.0,91351.0,0.01094678]
[1767485686636,0.01094499,91366.0,91360.0,0.00840348]
[1767485686918,0.04649987,91364.0,91360.0,0.00840348]
[1767485687625,0.01094499,91366.0,91355.0,0.0109463]
[1767485687626,0.01094511,91365.0,91355.0,0.0109463]
[1767485687833,0.01094511,91365.0,91356.0,0.01094618]
[1767485688045,0.01094546,91362.0,91356.0,0.01094618]
[1767485688249,0.01094546,91362.0,91354.0,0.01094642]
[1767485688250,0.01089834,91362.0,91355.0,0.0109463]
[1767485688598,0.01089834,91362.0,91353.0,0.01094654]
[1767485688599,0.01094558,91361.0,91353.0,0.01094654]
[1767485688958,0.01094582,91359.0,91352.0,0.01094666]
[1767485689203,0.01094582,91359.0,91351.0,0.01094678]
[1767485689550,0.01094558,91361.0,91354.0,0.01094642]
[1767485689946,0.0109457,91360.0,91352.0,0.01094666]
[1767485690183,0.0109457,91360.0,91353.0,0.01094654]
[1767485690398,0.01094582,91359.0,91352.0,0.01094666]
[1767485690846,0.01094582,91359.0,91353.0,0.01094654]
[1767485691049,0.0109457,91360.0,91353.0,0.01094654]
[1767485691253,0.01094558,91361.0,91354.0,0.01094642]
[1767485692101,0.01089834,91362.0,91354.0,0.01094642]
[1767485693414,0.01089834,91362.0,91355.0,0.0109463]
[1767485694961,0.01089834,91362.0,91356.0,0.01094618]
[1767485695747,0.0109457,91360.0,91354.0,0.01094642]
[1767485696001,0.01094558,91361.0,91354.0,0.01094642]
[1767485696669,0.04649987,91360.0,91354.0,0.01094642]
[1767485696982,0.04649987,91360.0,91355.0,0.0109463]
[1767485697185,0.05744557,91360.0,91354.0,0.01094642]
[1767485697382,0.04649987,91360.0,91354.0,0.01094642]
[1767485697787,0.04649987,91360.0,91355.0,0.0109463]
[1767485698169,0.01094499,91366.0,91357.0,0.01094606]
[1767485698352,0.04649987,91364.0,91358.0,0.01024858]
[1767485698553,0.04649987,91364.0,91355.0,0.0109463]
[1767485698554,0.01094546,91362.0,91355.0,0.0109463]
[1767485698831,0.01094534,91363.0,91355.0,0.0109463]
[1767485698832,0.05744521,91363.0,91356.0,0.00988958]
[1767485699035,0.000999,91355.0,91351.0,0.01058953]
[1767485699182,0.0109457,91360.0,91352.0,0.05858442]
[1767485699376,0.0109457,91360.0,91353.0,0.01058723]
[1767485699569,0.0109457,91360.0,91353.0,0.0095314]
[1767485699759,0.01094582,91359.0,91353.0,0.01094654]
[1767485699961,0.01094582,91359.0,91353.0,0.00989459]
[1767485700167,0.0109457,91360.0,91353.0,0.0095319]
[1767485700546,0.01094582,91359.0,91352.0,0.01094666]
[1767485700753,0.02067665,91368.0,91359.0,0.04667323]
[1767485700911,0.04577554,91380.0,91332.0,0.32847106]
[1767485700912,0.01094403,91374.0,91366.0,0.01094499]
[1767485701110,0.05506321,91391.0,91375.0,0.01094391]
[1767485701313,0.05506321,91391.0,91380.0,0.01060862]
[1767485701314,0.01094211,91390.0,91380.0,0.01060862]
[1767485701481,0.01094211,91390.0,91384.0,0.06532104]
[1767485701482,0.00035317,91390.0,91384.0,0.06532104]
[1767485701682,0.01094187,91392.0,91386.0,0.01094259]
[1767485701901,0.010356,91386.0,91383.0,0.01058753]
[1767485702137,0.01,91386.0,91384.0,0.05471417]
[1767485702336,1e-08,91396.0,91394.0,0.04603061]
[1767485702540,0.010939,91416.0,91408.0,0.01093996]
[1767485702769,0.03325828,91422.0,91415.0,0.01093912]
[1767485703091,0.01093864,91419.0,91412.0,0.01093948]
[1767485703228,0.04613154,91412.0,91400.0,0.01094091]
[1767485703430,0.04577554,91411.0,91405.0,0.01094032]
[1767485703847,0.01093984,91409.0,91401.0,0.03326079]
[1767485704014,0.01093996,91408.0,91402.0,0.02232]
[1767485704407,0.01129823,91412.0,91402.0,0.021864]
[1767485704711,0.01093984,91409.0,91402.0,0.021864]
[1767485704960,0.01093984,91409.0,91402.0,0.03280467]
[1767485705166,0.01093996,91408.0,91402.0,0.03280467]
[1767485705462,0.01093972,91410.0,91403.0,0.01094055]
[1767485705666,0.00035875,91412.0,91407.0,0.01094008]
[1767485705815,0.05671526,91410.0,91404.0,0.02232]
[1767485706012,0.05671526,91410.0,91387.0,0.04603061]
[1767485706013,0.01094008,91407.0,91389.0,0.01094223]
[1767485706235,0.10048086,91399.0,91389.0,0.01094223]
[1767485706408,0.01093972,91410.0,91386.0,0.2188519]
[1767485706614,0.01129823,91412.0,91406.0,0.0109402]
[1767485706811,0.00035875,91412.0,91402.0,0.01094067]
[1767485707010,0.0109396,91411.0,91402.0,0.01094067]
[1767485707211,0.05469861,91410.0,91402.0,0.01094067]
[1767485707431,0.01094079,91401.0,91397.0,0.02232]
[1767485707761,0.06564426,91402.0,91396.0,0.02228]
[1767485708111,0.05470459,91400.0,91391.0,0.01094199]
[1767485708266,0.01094163,91394.0,91384.0,0.01094283]
[1767485708435,0.05471297,91386.0,91383.0,0.00050233]
[1767485708637,0.01094223,91389.0,91386.0,0.000999]
[1767485708836,0.06565364,91389.0,91386.0,0.010999]
[1767485709037,0.01094259,91386.0,91369.0,0.06566766]
[1767485709241,0.01094379,91376.0,91367.0,0.02228]
[1767485709450,0.13108335,91385.0,91340.0,0.69949578]
[1767485709451,0.00764643,91349.0,91340.0,0.0109481]
[1767485709653,0.0109469,91350.0,91343.0,0.01109914]
[1767485709889,0.05473393,91351.0,91349.0,0.00864543]
[1767485710320,0.01094702,91349.0,91343.0,0.0001514]
[1767485710541,0.02228,91352.0,91349.0,0.00235357]
[1767485710705,0.03322666,91352.0,91349.0,0.00235357]
[1767485710913,0.03322666,91352.0,91349.0,0.0002]
[1767485711101,0.01094642,91354.0,91352.0,0.000999]
[1767485711306,0.04577554,91374.0,91343.0,0.01120666]
[1767485711307,0.01094558,91361.0,91351.0,0.01094678]
[1767485711590,0.01094523,91364.0,91361.0,0.01]
[1767485711809,0.02228,91363.0,91361.0,0.01]
[1767485712014,0.01094463,91369.0,91363.0,0.000999]
[1767485712224,0.01094475,91368.0,91363.0,0.000999]
[1767485712451,0.01094499,91366.0,91361.0,0.01]
[1767485712728,0.0109457,91360.0,91350.0,0.0109469]
[1767485712927,0.0109457,91360.0,91351.0,0.01094678]
[1767485713132,0.01094606,91357.0,91350.0,0.0109469]
[1767485713370,0.01094606,91357.0,91351.0,0.01094678]
[1767485713576,0.01094582,91359.0,91357.0,0.000999]
[1767485713882,0.02228,91365.0,91362.0,0.01094546]
[1767485714125,0.02228,91369.0,91362.0,0.05697607]
[1767485714308,0.05472121,91373.0,91362.0,0.05697607]
[1767485714309,0.02228,91371.0,91365.0,0.01094511]
[1767485714517,0.01094391,91375.0,91366.0,0.01094499]
[1767485714660,0.01094439,91371.0,91365.0,0.01094511]
[1767485714860,0.08794419,91374.0,91364.0,0.01094523]
[1767485714861,0.01094427,91372.0,91364.0,0.01094523]
[1767485715078,0.01094427,91372.0,91365.0,0.01094511]
[1767485715296,0.01094415,91373.0,91367.0,0.01094487]
[1767485715495,0.01094475,91368.0,91360.0,0.0109457]
[1767485715697,0.01094451,91370.0,91360.0,0.06567407]
[1767485715898,0.01094463,91369.0,91363.0,0.01094534]
[1767485716282,0.01094415,91373.0,91366.0,0.01094499]
[1767485716482,0.02228,91374.0,91365.0,0.01094511]
[1767485716682,0.01094391,91375.0,91369.0,0.01094463]
[1767485716900,0.01094391,91375.0,91367.0,0.01094487]
[1767485717101,0.02228,91374.0,91367.0,0.01094487]
[1767485717649,0.01094463,91369.0,91360.0,0.0109457]
[1767485717834,0.01094511,91365.0,91357.0,0.01094606]
[1767485718038,0.01094523,91364.0,91357.0,0.01094606]
[1767485718199,0.05472674,91363.0,91350.0,0.06568103]